bitfinex-derivatives/quotes_SOLF0:USTF0_20250817
["timestamp","ask_amount","ask_price","bid_price","bid_amount"]
[1755445809228,8.38159464,194.84,194.77,2.92]
[1755445809523,4.68930417,194.83,194.77,2.92]
[1755445809724,3.02,194.85,194.77,2.92]
[1755445809932,8.38293672,194.84,194.77,2.92]
[1755445810128,3.02,194.82,194.77,2.92]
[1755445810329,3.02,194.88,194.77,2.92]
[1755445810536,12.51073436,194.87,194.77,2.92]
[1755445810732,3.02,194.85,194.77,2.92]
[1755445810931,9.66696946,194.86,194.77,2.92]
[1755445810932,11.40421235,194.84,194.77,2.92]
[1755445811128,4.69069307,194.83,194.77,2.92]
[1755445811334,3.02,194.84,194.77,2.92]
[1755445811531,8.38455114,194.83,194.77,2.92]
[1755445811834,3.02,194.84,194.77,2.92]
[1755445812036,3.02,194.82,194.77,2.92]
[1755445812234,4.69044683,194.81,194.77,2.92]
[1755445812434,23.77166124,194.89,194.77,2.92]
[1755445812636,3.02,194.84,194.77,2.92]
[1755445812837,11.40417835,194.83,194.77,2.92]
[1755445813036,11.40417835,194.82,194.77,2.92]
[1755445813244,3.02,194.82,194.77,2.92]
[1755445813646,3.02,194.82,194.76,2.58076342]
[1755445813944,3.02,194.8,194.77,2.92]
[1755445814446,3.02,194.82,194.77,2.92]
[1755445814745,3.02,194.88,194.77,2.92]
[1755445815044,3.02,194.86,194.77,2.92]
[1755445815246,3.02,194.84,194.77,2.92]
[1755445815444,11.40184231,194.83,194.77,2.92]
[1755445815643,8.38184231,194.82,194.77,2.92]
[1755445815846,3.02,194.81,194.77,2.92]
[1755445816540,3.02,194.81,194.78,2.92]
[1755445816746,3.02,194.81,194.76,2.92]
[1755445817047,3.02,194.79,194.75,2.92]
[1755445817748,3.02,194.79,194.71,2.8]
[1755445820342,2.97,194.85,194.74,2.8]
[1755445820545,2.97,194.83,194.77,2.8]
[1755445820741,11.34180255,194.82,194.77,2.8]
[1755445820943,2.97,194.82,194.77,2.8]
[1755445823645,2.97,194.85,194.77,2.8]
[1755445823847,2.97,194.83,194.77,2.8]
[1755445826046,394.90186835,194.9,194.77,2.8]
[1755445826246,2.97,194.86,194.8,2.8]
[1755445826449,2.97,194.88,194.82,2.58076342]
[1755445826754,2.97,194.88,194.83,2.8]
[1755445827940,2.97,194.87,194.83,2.8]
[1755445828450,47.52110493,194.9,194.83,2.8]
[1755445828650,11.34706179,194.89,194.83,2.8]
[1755445828950,11.34706179,194.88,194.83,2.8]
[1755445829141,2.97,194.88,194.83,2.8]
[1755445829345,2.97,194.87,194.83,2.8]
[1755445829546,2.97,194.86,194.83,2.8]
[1755445830154,47.52110493,194.9,194.83,2.8]
[1755445830353,8.37719239,194.89,194.83,2.8]
[1755445830553,2.97,194.87,194.83,2.8]
[1755445830956,47.52110493,194.9,194.83,2.8]
[1755445831251,4.68307208,194.89,194.85,2.58076342]
[1755445831457,2.97,194.91,194.86,2.8]
[1755445831757,5.78089782,194.97,194.86,2.8]
[1755445831758,3.86309774,194.97,194.86,2.8]
[1755445831953,2.97,194.95,194.86,2.8]
[1755445832149,2.97,194.93,194.86,2.8]
[1755445832353,2.97,194.91,194.86,2.8]
[1755445833960,2.97,194.96,194.86,2.8]
[1755445834156,12.49348281,194.95,194.86,2.8]
[1755445834358,2.97,194.93,194.86,2.8]
[1755445834557,2.97,194.91,194.86,2.8]
[1755445834762,2.97,194.91,194.73,344.82]
[1755445834763,8.37232042,194.9,194.8,2.58076342]
[1755445835059,2.97,194.88,194.81,2.8]
[1755445836156,4.68127529,194.87,194.81,2.8]
[1755445836360,2.97,194.85,194.81,2.8]
[1755445836556,2.97,194.85,194.79,2.8]
[1755445836764,8.37478813,194.84,194.79,2.8]
[1755445836963,2.97,194.83,194.75,2.8]
[1755445840368,2.97,194.9,194.77,2.58076342]
[1755445840665,2.97,194.88,194.81,2.8]
[1755445840871,8.39460575,194.87,194.81,2.8]
[1755445841072,2.97,194.84,194.81,2.8]
[1755445841264,2.97,194.84,194.82,2.8]
[1755445841460,2.97,194.83,194.82,2.8]
[1755445844670,2.97,194.91,194.8,5.38076342]
[1755445844871,2.97,194.89,194.8,5.38076342]
[1755445845073,2.97,194.87,194.8,5.38076342]
[1755445845273,8.39445193,194.86,194.8,5.38076342]
[1755445845474,2.97,194.84,194.81,2.8]
[1755445845772,2.97,194.83,194.82,2.8]
[1755445847373,2.97,194.84,194.83,2.8]
[1755445849077,2.58076342,194.89,194.79,2.91]
[1755445849379,2.88,194.87,194.79,2.91]
[1755445849571,2.88,194.85,194.79,2.91]
[1755445849772,2.88,194.83,194.75,2.58076342]
[1755445850080,2.88,194.81,194.77,2.91]
[1755445850584,2.88,194.81,194.72,2.58076342]
[1755445850875,2.88,194.81,194.73,2.91]
[1755445851272,4.70301859,194.8,194.73,2.91]
[1755445851472,2.88,194.79,194.73,2.91]
[1755445853778,2.88,194.85,194.76,2.91]
[1755445853969,8.39606478,194.84,194.76,2.91]
[1755445854173,4.70242764,194.83,194.76,2.91]
[1755445854384,2.88,194.84,194.79,2.91]
[1755445854582,7.58201053,194.83,194.79,2.91]
[1755445854880,2.88,194.82,194.79,2.91]
[1755445856482,2.88,194.84,194.79,2.91]
[1755445856782,7.58192557,194.83,194.79,2.91]
[1755445856983,2.88,194.83,194.79,2.91]
[1755445857179,2.58076342,194.9,194.79,2.91]
[1755445857380,2.88,194.88,194.79,2.91]
[1755445857681,11.27761933,194.87,194.81,2.58076342]
[1755445857886,8.39761933,194.86,194.82,2.91]
[1755445858087,8.39761933,194.85,194.82,2.91]
[1755445858288,5.78089782,194.92,194.82,2.91]
[1755445858482,2.88,194.86,194.82,2.91]
[1755445858781,8.39694886,194.85,194.82,2.91]
[1755445858978,2.88,194.86,194.82,2.91]
[1755445859186,8.39700876,194.85,194.82,2.91]
[1755445859384,2.88,194.85,194.82,2.91]
[1755445860588,2.88,194.92,194.8,2.91]
[1755445860784,2.88,194.9,194.8,2.91]
[1755445860990,2.88,194.88,194.8,2.91]
[1755445861193,2.88,194.86,194.8,2.91]
[1755445861392,3.69532474,194.85,194.8,2.91]
[1755445861686,2.88,194.92,194.82,2.58076342]
[1755445861990,8.39633572,194.91,194.86,2.91]
[1755445862291,2.88,194.93,194.86,2.91]
[1755445862487,8.39337011,194.92,194.86,2.91]
[1755445862688,8.39337011,194.91,194.86,2.91]
[1755445862888,2.88,194.91,194.86,2.91]
[1755445865193,3.69439802,194.9,194.86,2.91]
[1755445865494,2.88,194.91,194.86,2.91]
[1755445866393,347.42076342,194.99,194.86,2.91]
[1755445866594,2.88,194.9,194.86,2.91]
[1755445867296,5.46076342,194.96,194.86,2.91]
[1755445867491,2.88,194.94,194.85,2.58076342]
[1755445867796,2.88,194.92,194.82,2.58076342]
[1755445868093,2.88,194.9,194.83,2.91]
[1755445868283,2.88,194.88,194.83,2.91]
[1755445868484,2.88,194.86,194.84,2.91]
[1755445868684,2.88,194.92,194.83,2.91]
[1755445868889,2.88,194.9,194.83,2.91]
[1755445869089,8.32535939,194.89,194.83,2.91]
[1755445869295,2.88,194.87,194.83,2.91]
[1755445869695,2.88,194.91,194.83,2.91]
[1755445869891,2.88,194.89,194.83,2.91]
[1755445870689,6.57453851,194.88,194.83,2.91]
[1755445870884,2.88,194.88,194.83,2.91]
[1755445871393,2.88,194.9,194.83,2.91]
[1755445871695,3.69469178,194.89,194.83,2.91]
[1755445871994,2.88,194.9,194.83,2.91]
[1755445872193,11.20570247,194.89,194.83,2.91]
[1755445872394,2.88,194.89,194.83,2.91]
[1755445877499,2.88,194.87,194.83,2.91]
[1755445878894,2.83,194.94,194.83,2.58076342]
[1755445879100,2.83,194.92,194.84,2.98]
[1755445879295,2.83,194.9,194.84,2.98]
[1755445879497,2.83,194.88,194.84,2.98]
[1755445880000,2.58076342,194.95,194.84,2.98]
[1755445880200,2.83,194.87,194.84,2.98]
[1755445882612,2.86242049,194.87,194.84,2.98]
[1755445883811,2.83,194.86,194.85,2.98]
[1755445884407,2.58076342,194.95,194.85,2.98]
[1755445884614,2.83,194.87,194.86,2.98]
[1755445884806,2.58076342,194.95,194.8,2.58076342]
[1755445885114,2.83,194.88,194.87,2.98]
[1755445885309,4.63293416,194.88,194.87,2.98]
[1755445885517,2.83,194.92,194.87,2.98]
[1755445885712,2.83,194.9,194.87,2.98]
[1755445885911,11.1007773,194.89,194.88,2.98]
[1755445886415,11.10071188,194.89,194.88,2.98]
[1755445887212,2.83,194.88,194.76,2.98]
[1755445887419,8.27071188,194.87,194.76,2.58076342]
[1755445887613,11.10071188,194.86,194.77,2.98]
[1755445887813,8.27071188,194.85,194.77,2.98]
[1755445888013,2.83,194.85,194.77,2.98]
[1755445888919,2.83,194.84,194.77,2.98]
[1755445890617,2.83,194.87,194.77,2.98]
[1755445890817,2.83,194.85,194.77,2.98]
[1755445891017,2.83,194.84,194.77,2.98]
[1755445893418,2.83,194.88,194.8,2.98]
[1755445893617,11.10077913,194.87,194.8,2.98]
[1755445893819,8.27077913,194.86,194.8,2.98]
[1755445894020,2.83,194.87,194.8,2.98]
[1755445894220,8.27033774,194.86,194.8,2.98]
[1755445894518,2.83,194.87,194.8,2.98]
[1755445894713,8.27044162,194.86,194.8,2.98]
[1755445894917,2.83,194.93,194.83,2.98]
[1755445895112,2.83,194.91,194.83,2.98]
[1755445895319,126.28,194.94,194.76,2.58076342]
[1755445895320,8.26985718,194.9,194.88,2.58076342]
[1755445895522,3.72309774,194.97,194.88,2.58076342]
[1755445895720,347.67,194.99,194.91,2.58076342]
[1755445895921,8.26645256,194.98,194.92,2.98]
[1755445896116,2.83,194.95,194.93,2.98]
[1755445896416,2.83,194.95,194.8,67.12637764]
[1755445896417,2.83,194.99,194.89,2.98]
[1755445896611,2.83,194.97,194.89,2.98]
[1755445896812,9.54661832,194.98,194.89,2.98]
[1755445896813,2.83,194.95,194.89,2.98]
[1755445897013,2.83,194.93,194.85,2.98]
[1755445897317,2.83,194.91,194.83,2.98]
[1755445897511,2.83,194.89,194.83,2.98]
[1755445897710,2.83,194.87,194.83,2.98]
[1755445897913,2.83,194.86,194.83,2.98]
[1755445898112,2.83,194.85,194.83,2.98]
[1755445898714,2.58076342,194.89,194.7,344.74]
[1755445898920,2.83,194.87,194.79,2.98]
[1755445899114,2.83,194.85,194.79,2.98]
[1755445899322,4.63784397,194.84,194.78,2.58076342]
[1755445899522,2.83,194.87,194.79,2.98]
[1755445899729,2.58076342,194.95,194.81,2.58076342]
[1755445900025,2.83,194.89,194.82,2.98]
[1755445900324,2.83,194.89,194.79,2.58076342]
[1755445900325,2.83,194.86,194.79,2.58076342]
[1755445900525,2.83,194.86,194.84,2.98]
[1755445901819,4.63886032,194.85,194.8,2.98]
[1755445902019,2.83,194.86,194.81,2.98]
[1755445902218,2.83,194.84,194.79,2.98]
[1755445902424,2.83,194.84,194.76,2.58076342]
[1755445902425,2.83,194.82,194.76,2.58076342]
[1755445902626,2.83,194.82,194.8,2.98]
[1755445903127,2.83,194.85,194.77,2.98]
[1755445903319,2.83,194.83,194.77,2.98]
[1755445903520,2.58076342,194.86,194.74,2.98]
[1755445903521,2.83,194.81,194.74,2.98]
[1755445904624,2.83,194.85,194.74,2.98]
[1755445904823,2.83,194.83,194.74,2.98]
[1755445905023,2.83,194.81,194.74,2.98]
[1755445905216,2.83,194.79,194.74,2.98]
[1755445905420,2.83,194.85,194.74,2.98]
[1755445905616,2.83,194.83,194.74,2.58076342]
[1755445905816,8.27492366,194.82,194.75,2.98]
[1755445906026,2.83,194.83,194.75,2.98]
[1755445906226,8.2745241,194.82,194.75,2.98]
[1755445906522,2.83,194.83,194.75,2.98]
[1755445906822,2.83,194.81,194.75,2.98]
[1755445915634,2.77,194.85,194.75,2.98]
[1755445915833,11.04506384,194.84,194.75,2.98]
[1755445916030,3.64274728,194.83,194.75,2.98]
[1755445916232,2.77,194.84,194.75,2.98]
[1755445916538,2.77,194.84,194.77,2.58076342]
[1755445916735,2.77,194.86,194.78,2.97]
[1755445917739,2.77,194.86,194.78,5.55076342]
[1755445917933,2.77,194.86,194.79,2.97]
[1755445918633,4.63208458,194.85,194.79,2.97]
[1755445918837,17.99076342,194.92,194.79,2.97]
[1755445919038,2.77,194.83,194.79,2.97]
[1755445920339,2.77,194.88,194.79,2.97]
[1755445920543,5.35076342,194.86,194.79,2.97]
[1755445920737,2.58076342,194.83,194.73,2.97]
[1755445920938,5.78089782,194.89,194.73,2.97]
[1755445920939,4.63234264,194.82,194.74,2.97]
[1755445921133,2.77,194.84,194.76,2.58076342]
[1755445921339,2.58076342,194.92,194.8,2.97]
[1755445921642,8.27515081,194.91,194.86,2.97]
[1755445921842,2.77,194.93,194.86,2.97]
[1755445922143,8.27236578,194.92,194.86,2.97]
[1755445922342,8.27236578,194.91,194.86,2.97]
[1755445922542,2.77,194.93,194.86,2.97]
[1755445922738,0.03654766,194.91,194.86,2.97]
[1755445923442,0.03654766,194.91,194.82,2.58076342]
[1755445923654,2.77,194.9,194.87,2.97]
[1755445923838,2.77,194.9,194.83,2.97]
[1755445924034,2.58076342,194.92,194.78,2.58076342]
[1755445924035,8.27190404,194.89,194.78,2.58076342]
[1755445924341,2.77,194.86,194.84,2.97]
[1755445924743,2.77,194.91,194.79,2.97]
[1755445924942,0.0343067,194.87,194.79,2.97]
[1755445925143,11.04380129,194.86,194.79,2.97]
[1755445925343,2.77,194.86,194.79,2.97]
[1755445936854,0.0343067,194.87,194.81,2.58076342]
[1755445937052,0.0343067,194.87,194.82,2.97]
[1755445940349,2.9643067,194.87,194.82,2.82]
[1755445940550,0.0343067,194.87,194.82,2.82]
[1755445940752,2.9643067,194.87,194.82,2.82]
[1755445941256,2.93,194.86,194.83,2.82]
[1755445941453,2.93,194.85,194.84,2.82]
[1755445941758,0.0343067,194.87,194.85,2.82]
[1755445942147,2.93,194.89,194.85,2.82]
[1755445942556,0.03579404,194.88,194.85,2.82]
[1755445943559,2.96579404,194.88,194.84,2.82]
[1755445944058,2.93,194.87,194.83,2.82]
[1755445945059,0.03579404,194.88,194.8,2.82]
[1755445945259,2.93,194.87,194.8,2.82]
[1755445945949,2.96631468,194.85,194.8,2.82]
[1755445946458,2.93,194.83,194.8,2.82]
[1755445947049,2.96631468,194.85,194.8,2.82]
[1755445947450,0.03631468,194.85,194.8,5.40076342]
[1755445947656,0.03631468,194.85,194.8,2.58076342]
[1755445947856,0.03631468,194.85,194.81,2.82]
[1755445951871,0.03631468,194.85,194.84,2.82]
[1755445952373,2.58076342,194.94,194.81,2.58076342]
[1755445952574,0.03823393,194.86,194.85,2.82]
[1755445952971,2.93,194.87,194.85,2.82]
[1755445953277,2.96837808,194.87,194.85,2.82]
[1755445953775,2.96837808,194.87,194.86,2.82]
[1755445955373,2.93,194.86,194.83,2.82]
[1755445955673,2.93,194.86,194.79,2.82]
[1755445955877,8.27836208,194.85,194.79,2.82]
[1755445956175,2.93,194.83,194.79,2.82]
[1755445957371,0.03929218,194.84,194.79,2.82]
[1755445957577,2.93,194.83,194.8,2.82]
[1755445958278,0.03929218,194.84,194.8,2.82]
[1755445958476,2.93,194.82,194.8,2.82]
[1755445958976,2.93,194.82,194.81,2.82]
[1755445959877,0.03929218,194.84,194.81,2.82]
[1755445960075,0.03929218,194.84,194.78,2.82]
[1755445964083,2.96929218,194.84,194.78,2.82]
[1755445965985,0.03929218,194.84,194.8,2.58076342]
[1755445966180,0.03929218,194.84,194.81,2.82]
[1755445967978,2.97,194.83,194.78,2.58076342]
[1755445968184,0.03929218,194.84,194.79,2.88]
[1755445968381,2.97,194.84,194.79,2.88]
[1755445968583,2.97,194.92,194.79,2.88]
[1755445968886,0.03360077,194.83,194.79,2.88]
[1755445969085,2.97,194.86,194.79,2.88]
[1755445969282,7.60472774,194.85,194.79,2.88]
[1755445969582,0.03528777,194.83,194.81,2.58076342]
[1755445969885,2.97,194.89,194.82,2.88]
[1755445970084,8.28618827,194.88,194.82,2.88]
[1755445970288,2.97,194.91,194.82,2.88]
[1755445970481,8.2857275,194.9,194.85,2.88]
[1755445970777,132.06089782,194.96,194.85,2.88]
[1755445970778,8.28560311,194.89,194.85,2.88]
[1755445970986,2.97,194.92,194.85,2.88]
[1755445971183,2.97,194.9,194.85,2.91307383]
[1755445971382,11.25548051,194.89,194.85,2.91307383]
[1755445971580,2.97,194.88,194.85,0.03307383]
[1755445971784,2.97,194.88,194.87,2.88]
[1755445971984,7.60330361,194.88,194.87,2.88]
[1755445972186,4.63330361,194.88,194.87,2.88]
[1755445972385,126.28,194.96,194.85,0.03307383]
[1755445972686,2.97,194.94,194.86,2.88]
[1755445972887,12.36453441,194.93,194.86,2.88]
[1755445973080,9.56638746,194.92,194.86,2.88]
[1755445973285,9.56638746,194.91,194.84,2.58076342]
[1755445973482,2.97,194.89,194.88,0.03417474]
[1755445973687,11.25394873,194.89,194.88,0.03417474]
[1755445973988,11.25394873,194.89,194.88,2.91417474]
[1755445974788,11.25394873,194.89,194.88,0.03417474]
[1755445977881,12.53652961,194.89,194.88,0.03417474]
[1755445978284,2.97,194.88,194.83,2.88]
[1755445978479,2.97,194.86,194.83,2.88]
[1755445978683,4.63290991,194.85,194.81,2.88]
[1755445978885,0.0355978,194.9,194.84,2.88]
[1755445979183,4.63195601,194.89,194.88,2.88]
[1755445979698,7.6361189,194.89,194.88,2.88]
[1755445980689,7.6361189,194.89,194.84,2.58076342]
[1755445980987,7.60195601,194.88,194.86,2.88]
[1755445981189,0.03416289,194.89,194.85,2.88]
[1755445981393,0.03416289,194.89,194.88,2.88]
[1755445981689,2.97,194.94,194.88,2.88]
[1755445981889,8.25269676,194.93,194.88,2.88]
[1755445982093,8.25269676,194.92,194.88,2.88]
[1755445982280,2.97,194.94,194.88,2.88]
[1755445982589,8.2505333,194.93,194.88,2.88]
[1755445982791,4.62971359,194.92,194.88,2.88]
[1755445982987,2.97,194.96,194.88,2.88]
[1755445983181,9.53267267,194.95,194.88,2.88]
[1755445983386,8.25045191,194.94,194.88,2.88]
[1755445983693,8.25045191,194.93,194.9,0.03457471]
[1755445983996,4.62967235,194.92,194.91,2.88]
[1755445984392,2.97,194.97,194.91,2.88]
[1755445984592,2.97,194.95,194.91,2.88]
[1755445984789,2.97,194.93,194.9,0.03457471]
[1755445984990,2.97,194.91,194.9,0.03457471]
[1755445985291,8.24609593,194.91,194.9,0.03457471]
[1755445985483,11.21609593,194.91,194.9,0.03457471]
[1755445987288,6.58894158,194.91,194.9,0.03457471]
[1755445987489,11.21651507,194.91,194.9,0.03457471]
[1755445987988,11.21308676,194.91,194.9,0.03457471]
[1755445992095,11.21308676,194.91,194.74,8.5470766]
[1755445992096,9.52612525,194.91,194.81,2.58076342]
[1755445992399,0.03637333,194.92,194.69,67.98711486]
[1755445992400,5.55076342,194.89,194.79,2.88]
[1755445992600,2.97,194.87,194.79,2.88]
[1755445992899,2.97,194.85,194.79,2.88]
[1755445993099,2.97,194.83,194.79,2.88]
[1755445995600,0.03323667,194.84,194.79,2.88]
[1755445995795,4.62388466,194.83,194.79,2.88]
[1755445995991,0.03323667,194.84,194.79,2.88]
[1755445996195,2.97,194.83,194.79,2.88]
[1755445998405,0.03323667,194.84,194.79,2.88]
[1755445999007,2.98323667,194.84,194.79,2.88]
[1755445999506,0.03323667,194.84,194.79,2.88]
[1755446001304,2.98323667,194.84,194.79,2.88]
[1755446003300,0.03323667,194.84,194.79,2.88]
[1755446003906,2.98323667,194.84,194.79,2.88]
[1755446004205,2.95,194.83,194.79,2.88]
[1755446004409,2.95,194.82,194.79,2.88]
[1755446004804,2.95,194.83,194.79,2.88]
[1755446006306,0.03323667,194.84,194.79,2.88]
[1755446006905,0.03323667,194.84,194.81,2.58076342]
[1755446007207,0.03323667,194.84,194.82,2.91]
[1755446011608,2.95,194.93,194.82,2.91]
[1755446011804,126.22,194.94,194.82,2.91]
[1755446011805,2.95,194.91,194.82,2.91]
[1755446012012,2.95,194.89,194.82,2.91]
[1755446013004,2.95,194.89,194.85,2.91]
[1755446013407,126.22,194.94,194.85,2.91]
[1755446013611,11.18873758,194.93,194.85,2.91]
[1755446013811,8.23873758,194.92,194.85,2.91]
[1755446014012,4.61991046,194.91,194.85,2.91]
[1755446014206,2.95,194.93,194.87,2.58076342]
[1755446014409,4.61914379,194.92,194.88,2.91]
[1755446014610,7.56914379,194.92,194.88,2.91]
[1755446014910,2.95,194.92,194.88,2.94407457]
[1755446015110,344.78,194.98,194.88,2.94407457]
[1755446015311,2.95,194.94,194.88,2.94407457]
[1755446015511,11.18620028,194.93,194.88,2.94407457]
[1755446015712,2.95,194.93,194.88,2.94407457]
[1755446015907,344.78,194.98,194.88,2.94407457]
[1755446016113,2.95,194.96,194.88,2.94407457]
[1755446016310,4.61810469,194.95,194.88,2.94407457]
[1755446016514,2.95,194.96,194.88,2.94407457]
[1755446016714,8.23360039,194.95,194.88,2.94407457]
[1755446017016,2.95,194.96,194.88,2.94407457]
[1755446017213,4.61713717,194.95,194.88,2.94407457]
[1755446017516,2.95,194.96,194.88,2.94407457]
[1755446021919,8.22721636,194.95,194.88,2.94407457]
[1755446022116,8.22721636,194.94,194.88,0.03407457]
[1755446022314,2.95,194.98,194.89,2.91]
[1755446022515,2.95,194.96,194.89,2.91]
[1755446022715,2.95,194.94,194.89,2.91]
[1755446022911,2.95,194.94,194.9,2.91]
[1755446023117,2.95,194.94,194.91,0.03318821]
[1755446023314,2.95,194.94,194.91,2.94318821]
[1755446023917,2.95,194.94,194.91,0.03318821]
[1755446024526,4.61447057,194.93,194.91,0.03318821]
[1755446024713,2.95,194.92,194.91,0.03318821]
[1755446025618,2.95,194.98,194.92,2.91]
[1755446025818,2.58076342,194.99,194.91,2.94318821]
[1755446025819,2.95,194.96,194.91,2.94318821]
[1755446026022,2.95,194.94,194.91,2.94318821]
[1755446026224,2.95,194.93,194.91,2.94318821]
[1755446026523,2.95,194.98,194.91,0.03318821]
[1755446026722,2.58076342,194.99,194.91,0.03318821]
[1755446026723,2.95,194.96,194.91,0.03318821]
[1755446026932,17.99076342,194.99,194.91,0.03318821]
[1755446026933,2.95,194.94,194.91,0.03318821]
[1755446027224,2.95,194.92,194.91,0.03318821]
[1755446028625,17.99076342,194.99,194.91,3.05318821]
[1755446028626,2.89,194.95,194.91,3.05318821]
[1755446028813,2.89,194.96,194.91,3.05318821]
[1755446029016,7.50450608,194.95,194.91,3.05318821]
[1755446029217,2.89,194.95,194.91,3.05318821]
[1755446029418,2.89,194.94,194.91,3.05318821]
[1755446029626,2.58076342,194.99,194.91,3.05318821]
[1755446029825,2.89,194.95,194.91,3.05318821]
[1755446030024,2.89,194.98,194.91,0.03318821]
[1755446030224,2.58076342,194.99,194.91,0.03318821]
[1755446030225,2.89,194.96,194.91,0.03318821]
[1755446030420,2.89,194.94,194.91,0.03318821]
[1755446030625,2.89,194.92,194.91,0.03318821]
[1755446030924,7.50508865,194.92,194.91,0.03318821]
[1755446031319,11.11757543,194.92,194.91,0.03318821]
[1755446031516,11.11757543,194.92,194.84,3.02]
[1755446031716,2.89,194.9,194.84,3.02]
[1755446031919,2.89,194.88,194.85,3.02]
[1755446032322,2.89,194.87,194.85,3.02]
[1755446032524,2.89,194.87,194.82,3.02]
[1755446033324,2.89,194.87,194.81,67.58550919]
[1755446033525,2.89,194.87,194.82,3.02]
[1755446033837,0.03649284,194.88,194.82,3.02]
[1755446041040,2.92649284,194.88,194.82,3.02]
[1755446041839,2.89,194.95,194.87,2.58076342]
[1755446042137,9.54489893,194.94,194.88,3.02]
[1755446042332,2.89,194.95,194.88,3.02]
[1755446042527,9.54401953,194.94,194.88,3.02]
[1755446042741,2.89,194.95,194.88,3.02]
[1755446043241,2.89,194.95,194.9,0.03389871]
[1755446043534,2.89,194.95,194.91,3.02]
[1755446044338,345.59293733,195.01,194.91,3.02]
[1755446044548,2.89,194.94,194.91,3.02]
[1755446045137,345.59293733,195.01,194.91,3.05572564]
[1755446045352,2.89,194.99,194.91,3.05572564]
[1755446045643,345.59293733,195.01,194.91,3.05572564]
[1755446045644,2.89,194.97,194.91,3.05572564]
[1755446045947,12.43451583,194.96,194.91,3.05572564]
[1755446046147,2.89,194.96,194.91,3.05572564]
[1755446046443,2.89,195.0,194.91,3.05572564]
[1755446046646,9.54489365,194.99,194.91,3.05572564]
[1755446046943,2.89,194.97,194.91,3.05572564]
[1755446047144,9.54489365,194.96,194.91,3.05572564]
[1755446047343,5.47076342,195.04,194.92,3.02]
[1755446047547,2.89,195.02,194.92,3.02]
[1755446047747,2.89,195.0,194.92,3.02]
[1755446048043,2.89,194.98,194.95,0.03419222]
[1755446048246,9.54458104,194.97,194.95,0.03419222]
[1755446048447,8.78872758,194.96,194.95,0.03419222]
[1755446048949,8.78872758,194.96,194.95,3.05419222]
[1755446049141,7.56673156,194.96,194.95,3.05419222]
[1755446049340,2.89,194.96,194.95,3.05419222]
[1755446050848,0.89273117,195.03,194.95,0.03419222]
[1755446051150,2.89,194.97,194.96,3.02]
[1755446051341,4.17198609,194.97,194.96,3.02]
[1755446051547,7.81872188,194.97,194.96,3.02]
[1755446051750,12.49538451,194.97,194.96,3.02]
[1755446052349,5.95864872,194.97,194.96,3.02]
[1755446052560,2.89,195.01,194.96,3.02]
[1755446052742,9.60703801,195.0,194.96,3.02]
[1755446052947,9.60703801,194.99,194.96,3.02]